bitfinex-derivatives/quotes_SOLF0:USTF0_20251202
["timestamp","ask_amount","ask_price","bid_price","bid_amount"]
[1764639332281,0.05866863,126.75,126.74,3.12]
[1764639333779,0.05866863,126.75,126.72,3.12]
[1764639334579,0.05866863,126.75,126.73,3.12]
[1764639336386,0.05866863,126.75,126.73,10.2211]
[1764639336582,3.3,126.83,126.75,3.12]
[1764639336978,3.3,126.83,126.71,3.12]
[1764639336979,3.3,126.8,126.71,3.12]
[1764639337287,3.3,126.79,126.71,3.12]
[1764639337487,3.3,126.79,126.71,10.2224]
[1764639337684,3.35834072,126.76,126.74,0.05371594]
[1764639338676,0.05834072,126.76,126.74,3.14371594]
[1764639339078,12.92077237,126.81,126.74,3.14371594]
[1764639339079,3.14,126.82,126.77,7.099]
[1764639339386,3.14,126.82,126.78,3.09]
[1764639340080,3.19848377,126.81,126.79,0.05744072]
[1764639341284,3.19848377,126.81,126.72,10.1914]
[1764639341285,3.14,126.8,126.72,10.1914]
[1764639341990,5.82347237,126.81,126.72,10.1914]
[1764639341991,3.14,126.79,126.72,10.1914]
[1764639342193,3.14,126.82,126.75,3.09]
[1764639342387,0.05587548,126.8,126.77,3.15057175]
[1764639342789,0.05587548,126.8,126.78,3.09]
[1764639343186,3.14,126.85,126.78,3.09]
[1764639343587,3.14,126.87,126.82,3.09]
[1764639344292,0.06037364,126.86,126.83,3.1481863]
[1764639344692,0.06037364,126.86,126.84,3.09]
[1764639345692,0.06037364,126.86,126.85,3.09]
[1764639346696,3.14,126.92,126.86,3.09]
[1764639346895,3.14,126.9,126.86,3.09]
[1764639347496,0.04968509,126.89,126.87,0.05938612]
[1764639347794,0.04968509,126.89,126.88,3.09]
[1764639350993,0.04968509,126.89,126.88,71.05]
[1764639351195,0.04968509,126.89,126.88,67.96]
[1764639351382,0.04968509,126.89,126.88,71.05]
[1764639351585,0.04968509,126.89,126.87,0.05938612]
[1764639351789,3.18968509,126.89,126.87,0.05938612]
[1764639351988,0.04968509,126.89,126.87,0.05938612]
[1764639357600,0.04968509,126.89,126.87,3.14938612]
[1764639359204,0.04968509,126.89,126.88,3.09]
[1764639361103,10.2301,126.94,126.88,3.09]
[1764639361995,0.05778532,126.92,126.9,0.05421606]
[1764639362897,3.19778532,126.92,126.9,0.05421606]
[1764639363103,0.05778532,126.92,126.9,0.05421606]
[1764639363806,3.19778532,126.92,126.9,0.05421606]
[1764639364716,0.05778532,126.92,126.9,3.14421606]
[1764639364895,3.14,126.98,126.9,3.14421606]
[1764639365102,3.14,126.96,126.87,113.432]
[1764639365506,3.14,126.96,126.88,3.09]
[1764639365807,3.18977259,126.93,126.91,0.05192305]
[1764639366010,3.18994201,126.93,126.91,0.05192305]
[1764639366409,0.04994201,126.93,126.91,3.14192305]
[1764639367610,3.14,126.99,126.91,3.14192305]
[1764639367810,3.14,127.01,126.93,3.09]
[1764639368007,12.00991726,127.0,126.93,3.09]
[1764639368208,2.89495825,126.99,126.93,3.09]
[1764639368411,3.14,127.0,126.94,7.0894]
[1764639368604,0.05963526,126.98,126.96,0.05795278]
[1764639369510,0.05963526,126.98,126.96,3.14795278]
[1764639369814,0.05963526,126.98,126.96,0.05795278]
[1764639370613,0.05963526,126.98,126.96,3.14795278]
[1764639372007,3.36963526,126.98,126.96,0.05795278]
[1764639372216,0.05963526,126.98,126.96,0.05795278]
[1764639374110,0.05963526,126.98,126.96,3.14795278]
[1764639374314,0.05963526,126.98,126.96,10.23635278]
[1764639374708,67.86,127.03,126.97,3.09]
[1764639374906,3.31,127.02,126.97,3.09]
[1764639377621,3.36297436,127.01,126.98,3.14729908]
[1764639378219,0.05297436,127.01,126.98,3.14729908]
[1764639379319,10.3929,127.07,126.99,3.09]
[1764639379514,3.31,127.1,127.02,110.213]
[1764639379726,6.19910767,127.09,127.03,3.09]
[1764639379915,3.31,127.07,127.0,3.09]
[1764639380414,0.05869893,127.05,127.02,0.06069131]
[1764639380815,3.36869893,127.05,127.02,0.06069131]
[1764639382419,3.36869893,127.05,127.02,3.15069131]
[1764639382823,3.36869893,127.05,127.02,0.06069131]
[1764639384413,6.20119057,127.04,127.02,0.06069131]
[1764639384617,0.05869893,127.05,127.02,3.15069131]
[1764639386426,0.05869893,127.05,127.04,3.09]
[1764639386628,3.31,127.11,127.04,3.09]
[1764639386820,8.86399387,127.1,127.04,3.09]
[1764639387021,3.31,127.11,127.04,3.09]
[1764639387022,2.8939861,127.09,127.04,3.09]
[1764639387227,2.8939861,127.08,127.06,10.1728]
[1764639387423,3.31,127.11,127.06,10.1728]
[1764639387628,3.31,127.09,127.07,0.05143955]
[1764639387831,6.20584424,127.08,127.07,0.05143955]
[1764639388321,12.17841002,127.08,127.07,0.05143955]
[1764639388927,6.20584424,127.08,127.07,0.05143955]
[1764639390531,2.89584424,127.08,127.07,3.23143955]
[1764639391329,0.05814229,127.1,127.07,3.23143955]
[1764639393130,3.31814229,127.1,127.07,0.05143955]
[1764639396726,3.26,127.09,127.07,0.05143955]
[1764639399233,3.27,127.08,127.07,0.05143955]
[1764639399929,3.32814229,127.1,127.07,0.05143955]
[1764639400329,3.27,127.09,127.07,0.05143955]
[1764639400532,0.05814229,127.1,127.07,3.27143955]
[1764639402327,0.05814229,127.1,127.08,10.3018]
[1764639402736,3.32814229,127.1,127.08,7.0818]
[1764639403133,0.05814229,127.1,127.08,7.0818]
[1764639408427,3.32814229,127.1,127.08,7.0818]
[1764639410228,3.32814229,127.1,127.07,0.05143955]
[1764639410739,3.32814229,127.1,127.07,10.35383955]
[1764639412042,3.32814229,127.1,127.07,0.05143955]
[1764639412735,3.27,127.08,127.07,0.05143955]
[1764639413042,12.01714529,127.08,127.07,0.05143955]
[1764639413428,19.09924529,127.08,127.02,7.0848]
[1764639413638,3.27,127.06,127.03,3.22]
[1764639414035,3.27,127.06,127.02,10.3048]
[1764639414240,5.96793235,127.05,127.02,3.22]
[1764639414440,0.05233614,127.05,127.02,3.27541412]
[1764639414832,0.05233614,127.05,127.02,10.36051412]
[1764639415744,0.05233614,127.05,127.02,3.27541412]
[1764639417531,3.32233614,127.05,127.02,0.05541412]
[1764639417733,3.27,127.03,126.96,3.22]
[1764639417932,110.24503614,127.05,126.96,3.22]
[1764639417933,5.9767123,127.02,126.96,3.22]
[1764639418130,10.3546,127.04,126.97,3.22]
[1764639418342,5.97821809,127.03,126.97,3.22]
[1764639418545,3.27,127.04,126.98,3.22]
[1764639418845,0.05385663,127.02,127.0,3.27617891]
[1764639419048,0.05385663,127.02,127.01,3.22]
[1764639423351,10.53509273,127.08,127.01,3.22]
[1764639423647,6.02298596,127.07,127.03,3.22]
[1764639423853,3.27,127.08,127.03,3.22]
[1764639424341,3.27,127.08,127.04,3.22]
[1764639424641,0.05503467,127.07,127.04,3.27853144]
[1764639425043,3.32503467,127.07,127.04,0.05853144]
[1764639425245,3.32503467,127.07,127.04,3.27853144]
[1764639426848,3.32503467,127.07,127.04,0.05853144]
[1764639427050,3.27,127.05,127.04,0.05853144]
[1764639428049,7.13753467,127.07,127.04,0.05853144]
[1764639428050,7.13753467,127.07,127.04,3.27853144]
[1764639428249,10.40753467,127.07,127.04,3.27853144]
[1764639429345,3.25,127.06,127.04,0.05853144]
[1764639435359,12.4253463,127.06,127.04,0.05853144]
[1764639435559,3.25,127.05,127.04,0.05853144]
[1764639435865,0.05503467,127.07,127.04,0.05853144]
[1764639435866,3.30503467,127.07,127.04,0.05853144]
[1764639436163,3.30503467,127.07,127.04,113.37143144]
[1764639436164,0.05503467,127.07,127.04,113.37143144]
[1764639436464,3.25,127.14,127.08,3.12]
[1764639436665,3.25,127.13,127.09,3.12]
[1764639437159,2.0918463,127.12,127.06,3.12]
[1764639437366,0.05934967,127.1,127.08,0.05179394]
[1764639438061,0.05934967,127.1,127.08,3.17179394]
[1764639438261,0.05934967,127.1,127.08,0.05179394]
[1764639438661,3.30934967,127.1,127.08,0.05179394]
[1764639439060,9.26888816,127.09,127.08,0.05179394]
[1764639439365,3.25,127.09,127.08,0.05179394]
[1764639439567,9.2688493,127.09,127.08,0.05179394]
[1764639440276,3.25,127.09,127.08,0.05179394]
[1764639440768,9.26987693,127.09,127.08,0.05179394]
[1764639441475,10.3319,127.08,127.02,77.9452]
[1764639441670,3.25,127.07,127.02,77.9452]
[1764639442474,0.04994223,127.06,127.03,0.05263437]
[1764639442668,0.04994223,127.06,127.03,3.17263437]
[1764639443475,3.29994223,127.06,127.03,0.05263437]
[1764639445573,10.38314223,127.06,127.03,0.05263437]
[1764639445872,3.25,127.05,127.03,0.05263437]
[1764639449562,10.3337,127.05,127.03,0.05263437]
[1764639449769,3.25,127.03,126.95,113.396]
[1764639450069,3.25,127.03,126.96,3.12]
[1764639450772,0.05974941,127.01,126.98,0.05994483]
[1764639450970,3.31974941,127.01,126.98,0.05994483]
[1764639451172,0.05974941,127.01,126.98,3.16994483]
[1764639452079,0.05974941,127.01,127.0,3.11]
[1764639452373,3.26,127.07,127.0,113.3426]
[1764639452568,3.26,127.07,127.03,3.11]
[1764639453173,3.26,127.05,127.02,7.085]
[1764639453375,3.32048089,127.05,127.02,7.14294834]
[1764639454283,3.32048089,127.05,127.02,3.16794834]
[1764639455584,3.32048089,127.05,127.02,10.25314834]
[1764639455988,0.06048089,127.05,127.03,3.11]
[1764639456176,0.06048089,127.05,127.04,3.11]
[1764639456377,0.06048089,127.05,127.02,3.16794834]
[1764639456986,0.06048089,127.05,127.03,10.1946]
[1764639458173,0.06048089,127.05,127.02,0.05794834]
[1764639458374,3.42048089,127.05,127.02,3.16794834]
[1764639458584,0.06048089,127.05,127.02,3.16794834]
[1764639458886,0.06048089,127.05,127.02,10.25304834]
[1764639459087,0.06048089,127.05,127.03,3.18]
[1764639459681,3.42048089,127.05,127.02,10.32304834]
[1764639461193,0.06048089,127.05,127.02,10.32304834]
[1764639461788,0.06048089,127.05,127.03,10.2642]
[1764639462090,0.06048089,127.05,127.04,3.18]
[1764639463087,0.06048089,127.05,127.03,10.2642]
[1764639465486,0.06048089,127.05,127.04,3.18]
[1764639465689,3.36,127.08,127.05,3.18]
[1764639465887,7.0817,127.09,127.05,3.18]
[1764639465888,3.36,127.09,127.05,3.18]
[1764639466088,6.03141586,127.08,127.05,3.18]
[1764639466289,3.36,127.09,127.05,3.18]
[1764639466493,6.03148139,127.08,127.05,3.18]
[1764639466687,0.04976784,127.08,127.05,3.18]
[1764639466996,0.04976784,127.08,127.05,3.235824]
[1764639467393,0.04976784,127.08,127.05,10.319324]
[1764639468290,3.40976784,127.08,127.05,10.319324]
[1764639468889,3.40976784,127.08,127.05,0.055824]
[1764639469089,9.39134163,127.07,127.05,0.055824]
[1764639469290,3.36,127.07,127.05,0.055824]
[1764639476104,9.38900155,127.06,127.05,0.055824]
[1764639476303,3.36,127.06,127.05,0.055824]
[1764639476707,9.38963047,127.06,127.05,0.055824]
[1764639477910,6.02963047,127.06,127.05,3.235824]
[1764639478102,0.04976784,127.08,127.05,3.235824]
[1764639478302,7.26509273,127.12,127.08,3.18]
[1764639478502,6.02974953,127.11,127.08,3.18]
[1764639478802,3.36,127.12,127.08,3.18]
[1764639479009,6.02555522,127.11,127.08,3.18]
[1764639479211,3.36,127.12,127.09,3.18]
[1764639479409,0.05042336,127.1,127.09,3.18]
[1764639479811,0.05042336,127.1,127.09,10.2613]
[1764639481016,0.05042336,127.1,127.09,7.0813]
[1764639481206,3.41042336,127.1,127.08,0.05954116]
[1764639481604,0.05042336,127.1,127.08,3.23954116]
[1764639482012,3.41042336,127.1,127.08,0.05954116]
[1764639482404,3.36,127.08,127.03,3.18]
[1764639483414,0.05476537,127.07,127.04,10.32371156]
[1764639483803,3.41476537,127.07,127.04,10.32371156]
[1764639484614,3.41476537,127.07,127.04,0.05981156]
[1764639488120,3.41476537,127.07,127.04,3.23981156]
[1764639489227,3.41476537,127.07,127.04,0.05981156]
[1764639496325,6.23298937,127.06,127.04,0.05981156]
[1764639496527,3.27,127.06,127.04,0.05981156]
[1764639496922,3.27,127.06,127.04,3.22981156]
[1764639497322,3.27,127.06,127.04,0.05981156]
[1764639497516,0.05476537,127.07,127.04,0.05981156]
[1764639497517,0.05476537,127.07,127.04,3.22981156]
[1764639498228,0.05476537,127.07,127.04,10.31391156]
[1764639498623,0.05476537,127.07,127.05,3.17]
[1764639498823,0.05476537,127.07,127.06,3.17]
[1764639501221,0.05476537,127.07,127.04,0.05981156]
[1764639501222,3.32476537,127.07,127.04,0.05981156]
[1764639501428,3.32476537,127.07,127.04,3.22981156]
[1764639504025,7.26509273,127.13,127.06,3.17]
[1764639504235,3.27,127.11,127.07,3.17]
[1764639504426,7.26509273,127.14,127.05,3.26773052]
[1764639504427,3.27,127.09,127.05,10.2533]
[1764639504623,3.27,127.09,127.06,3.17]
[1764639505026,3.32634968,127.09,127.06,3.22359832]
[1764639506634,0.05634968,127.09,127.06,3.22359832]
[1764639507335,0.05634968,127.09,127.08,3.17]
[1764639515245,3.16,127.16,127.12,3.35]
[1764639515438,5.99420909,127.15,127.12,3.35]
[1764639515633,3.16,127.17,127.12,3.35]
[1764639515834,12.03539373,127.16,127.12,3.35]
[1764639516041,3.16,127.16,127.12,3.35]
[1764639516340,0.05459095,127.15,127.13,7.13487961]
[1764639516530,3.21459095,127.15,127.13,0.05587961]
[1764639518640,0.05459095,127.15,127.13,3.12587961]
[1764639520745,0.05459095,127.15,127.13,10.20487961]
[1764639521337,0.05459095,127.15,127.14,3.07]
[1764639521939,0.05459095,127.15,127.13,10.20487961]
[1764639522335,3.18459095,127.15,127.13,7.13487961]
[1764639522846,3.18459095,127.15,127.13,0.05587961]
[1764639527153,0.05459095,127.15,127.13,3.12587961]
[1764639527446,3.18459095,127.15,127.13,0.05587961]
[1764639533450,3.13,127.14,127.08,3.07]
[1764639533753,3.13,127.12,127.06,3.07]
[1764639533951,3.13,127.11,127.06,3.07]
[1764639534152,3.13,127.1,127.04,3.07]
[1764639534551,0.05809317,127.08,127.06,3.12870802]
[1764639536863,0.05809317,127.08,127.06,10.21150802]
[1764639537159,0.05809317,127.08,127.07,3.07]
[1764639539369,3.18809317,127.08,127.06,3.12870802]
[1764639539661,0.05809317,127.08,127.06,3.12870802]
[1764639541069,0.05809317,127.08,127.07,7.0824]
[1764639541365,0.05809317,127.08,127.07,10.1524]
[1764639542167,3.13,127.13,127.08,3.07]
[1764639542562,3.13,127.13,127.09,3.07]
[1764639542864,3.13,127.15,127.09,3.07]
[1764639543061,3.13,127.12,127.11,0.05930822]
[1764639544359,3.1879735,127.13,127.11,0.05930822]
[1764639545065,0.0579735,127.13,127.11,3.12930822]
[1764639546574,3.1879735,127.13,127.11,0.05930822]
[1764639547171,3.1879735,127.13,127.11,3.12930822]
[1764639547468,0.0579735,127.13,127.11,3.12930822]
[1764639553274,0.0579735,127.13,127.11,10.20940822]
[1764639553970,0.0579735,127.13,127.12,3.32]
[1764639554775,3.4,127.18,127.15,3.32]
[1764639554973,3.4,127.15,127.1,3.32]
[1764639555168,3.4,127.15,127.11,3.32]
[1764639555672,3.4,127.15,127.1,67.66]
[1764639555673,3.4538902,127.14,127.12,0.05696702]
[1764639555974,3.4,127.13,127.12,0.05696702]
[1764639556567,9.41035532,127.13,127.12,0.05696702]
[1764639561572,6.01035532,127.13,127.12,0.05696702]
[1764639562078,6.01035532,127.13,127.12,3.37696702]
[1764639562471,0.0538902,127.14,127.12,3.37696702]
[1764639562674,0.0538902,127.14,127.13,5.41005128]
[1764639563281,0.0538902,127.14,127.13,3.32]
[1764639568185,3.4,127.2,127.15,3.32]
[1764639568382,3.4,127.2,127.16,3.32]
[1764639568782,3.4,127.2,127.17,7.0768]
[1764639568990,3.43644004,127.2,127.17,10.45649989]
[1764639569790,3.4,127.18,127.17,0.05969989]
[1764639571987,11.49177204,127.18,127.17,0.05969989]
[1764639573295,9.40172076,127.18,127.17,0.05969989]
[1764639573491,3.4,127.18,127.17,0.05969989]
[1764639574589,9.40034736,127.18,127.17,0.05969989]
[1764639575694,9.40034736,127.18,127.11,112.22225128]
[1764639575695,2.09005128,127.16,127.11,3.35]
[1764639575890,3.28,127.15,127.11,3.35]
[1764639576090,3.28,127.15,127.09,3.35]
[1764639576688,3.33345386,127.13,127.11,0.0590882]
[1764639581693,3.33345386,127.13,127.11,3.1490882]
[1764639581888,2.09005128,127.16,127.11,3.1490882]
[1764639581889,3.15,127.16,127.11,3.1490882]
[1764639582089,3.15,127.16,127.13,10.1691]
[1764639582290,2.09005128,127.18,127.14,3.09]
[1764639582595,9.15602954,127.17,127.14,3.09]
[1764639582897,3.19268607,127.17,127.14,3.14326284]
[1764639583296,3.19268607,127.17,127.14,10.22176284]
[1764639585090,3.19268607,127.17,127.14,0.05326284]
[1764639585296,6.00838656,127.16,127.14,0.05326284]
[1764639585493,3.15,127.15,127.14,0.05326284]
[1764639589401,12.07584439,127.15,127.14,0.05326284]
[1764639591202,12.07584439,127.15,127.1,10.1703]
[1764639591203,3.15,127.14,127.1,10.1703]
[1764639591400,3.15,127.14,127.11,3.09]
[1764639591900,3.15,127.14,127.11,10.1701]
[1764639592202,3.20261768,127.14,127.11,0.05503412]
[1764639600606,2.09005128,127.13,127.08,7.0817]
[1764639600803,3.15,127.11,127.06,3.09]
[1764639601810,3.20356838,127.1,127.07,3.14660506]
[1764639603610,3.20356838,127.1,127.07,0.05660506]
[1764639605706,3.20356838,127.1,127.07,3.14660506]
[1764639605909,0.05356838,127.1,127.08,3.09]
[1764639606211,3.20356838,127.1,127.08,3.09]
[1764639608313,0.05356838,127.1,127.08,3.09]
[1764639609007,3.22356838,127.1,127.08,3.09]
[1764639610413,3.22356838,127.1,127.07,10.30880506]
[1764639611214,3.22356838,127.1,127.07,0.05660506]
[1764639611918,3.22356838,127.1,127.07,3.22660506]
[1764639612209,0.05356838,127.1,127.07,3.22660506]
[1764639612424,3.17,127.15,127.09,3.17]
[1764639612914,3.17,127.15,127.11,10.25]
[1764639613114,3.17,127.15,127.11,3.17]
[1764639613321,3.17,127.15,127.12,0.05438232]
[1764639613507,3.22529969,127.14,127.12,0.05438232]
[1764639617522,0.05529969,127.14,127.12,3.22438232]
[1764639618418,0.05529969,127.14,127.12,10.30378232]
[1764639619518,0.05529969,127.14,127.13,3.17]
[1764639631536,3.23,127.19,127.15,3.33]
[1764639631732,7.33794283,127.22,127.15,3.33]
[1764639632035,3.23,127.22,127.2,3.33]
[1764639632229,3.23,127.22,127.16,180.95948349]
[1764639632230,3.23,127.22,127.17,3.33]
[1764639632632,0.04211496,127.21,127.18,3.37975815]
[1764639632826,3.27211496,127.21,127.18,3.37975815]
[1764639633126,0.04211496,127.21,127.19,3.33]
[1764639634031,0.04211496,127.21,127.19,10.4055]
[1764639634236,0.04211496,127.21,127.2,3.33]
[1764639634733,3.27211496,127.21,127.19,3.33]
[1764639634929,3.27211496,127.21,127.18,70.97975815]
[1764639636526,3.27211496,127.21,127.18,3.37975815]
[1764639636930,3.27211496,127.21,127.18,10.45595815]
[1764639638333,3.27211496,127.21,127.18,3.37975815]
[1764639640339,3.27211496,127.21,127.18,10.45595815]
[1764639641142,3.27211496,127.21,127.19,3.2]
[1764639644239,0.04211496,127.21,127.19,3.2]
[1764639645041,3.21,127.26,127.21,3.2]
[1764639645349,3.21,127.26,127.22,3.2]
[1764639645735,3.21,127.26,127.22,10.2738]
[1764639645940,3.21,127.26,127.23,3.26015979]
[1764639646137,3.21,127.26,127.23,0.06015979]
[1764639646344,3.21,127.25,127.23,0.06015979]
[1764639648153,3.21,127.24,127.2,7.0748]
[1764639649351,3.21,127.22,127.21,0.05081774]
[1764639650359,3.21,127.2,127.15,3.2]
[1764639651460,3.21,127.18,127.16,0.05859804]
[1764639656365,3.21,127.17,127.16,0.05859804]
[1764639656565,3.21,127.16,127.1,77.8402]
[1764639657562,3.26654139,127.14,127.12,0.05290811]
[1764639657758,0.05654139,127.14,127.12,3.25290811]
[1764639658763,3.26654139,127.14,127.12,3.25290811]
[1764639660159,3.26654139,127.14,127.12,0.05290811]
[1764639661759,3.21,127.12,127.07,3.2]
[1764639662357,3.21,127.13,127.09,3.2]
[1764639662562,3.26999983,127.12,127.1,0.05735584]
[1764639666560,3.26999983,127.12,127.06,7.083]
[1764639666758,3.21,127.1,127.06,10.283]
[1764639666957,3.21,127.1,127.03,115.49065563]
[1764639667553,3.21,127.1,127.05,0.05572316]
[1764639667759,3.21,127.07,127.05,0.05572316]
[1764639673561,3.39,127.06,126.99,5.49055563]
[1764639673755,2.09055563,127.05,126.99,3.4]
[1764639673956,3.39,127.04,126.99,3.4]
[1764639674367,2.09055563,127.08,127.0,3.4]
[1764639674670,3.44202409,127.05,127.03,0.0600653]
[1764639675060,3.44202409,127.05,127.03,3.4600653]
[1764639675870,3.44202409,127.05,127.03,0.0600653]
[1764639676759,2.09055563,127.04,126.97,5.49055563]
[1764639676964,3.39,127.03,126.98,10.4873]
[1764639677273,3.39,127.03,126.99,3.4]
[1764639677773,0.05879243,127.02,127.0,3.45661488]
[1764639679073,0.05879243,127.02,127.01,10.4858]
[1764639680564,0.05879243,127.02,127.0,0.05661488]
[1764639680565,3.44879243,127.02,127.0,0.05661488]
[1764639683072,3.39,127.08,127.01,3.4]
[1764639683271,3.39,127.08,127.02,5.49055563]
[1764639683976,3.39,127.08,127.04,0.05699481]
[1764639684280,3.4474735,127.06,127.04,0.05699481]
[1764639684673,0.0574735,127.06,127.04,3.45699481]
[1764639686078,0.0574735,127.06,127.04,10.54099481]
[1764639686282,0.0574735,127.06,127.05,3.4]
[1764639690676,0.0574735,127.06,127.04,5.26755044]
[1764639690882,0.0574735,127.06,127.05,3.12]
[1764639693284,2.09055563,127.13,127.07,7.0819]
[1764639693585,3.2,127.11,127.07,10.2019]
[1764639694279,0.05811707,127.1,127.07,10.2019]
[1764639694480,0.05811707,127.1,127.08,10.26202061]
[1764639694686,0.05811707,127.1,127.09,3.12]
[1764639695688,0.05811707,127.1,127.08,10.26202061]
[1764639695982,3.25811707,127.1,127.08,0.06022061]
[1764639696185,0.05811707,127.1,127.08,3.18022061]
[1764639697185,5.29055563,127.15,127.09,3.12]
[1764639697385,6.11239261,127.14,127.1,3.12]
[1764639697584,3.2,127.14,127.1,3.12]
[1764639698182,0.05600127,127.13,127.11,0.05000955]
[1764639698586,3.22600127,127.13,127.11,0.05000955]
[1764639699690,3.17,127.12,127.11,0.05000955]
[1764639700189,6.08527131,127.12,127.11,0.05000955]
[1764639700786,3.17,127.12,127.11,0.05000955]
[1764639702986,14.17857586,127.12,127.11,0.05000955]
[1764639704290,14.17857586,127.12,127.07,7.0824]
[1764639704291,3.17,127.11,127.07,7.0824]
[1764639705185,9.17035563,127.12,127.07,7.0824]
[1764639705186,3.22252014,127.1,127.08,0.05814662]
[1764639709596,3.17,127.09,127.08,0.05814662]
[1764639711695,9.18114364,127.09,127.08,0.05814662]
[1764639712295,3.17,127.09,127.08,0.05814662]
[1764639715903,3.17,127.09,127.05,10.2636]
[1764639716803,3.17,127.09,127.06,0.05104018]
[1764639718406,3.17,127.07,127.06,0.05104018]
[1764639719397,3.17,127.07,127.03,7.0843]
[1764639719805,3.17,127.06,127.02,3.18]
[1764639720307,3.22239356,127.05,127.03,0.05392354]
[1764639720605,2.09055563,127.04,127.03,0.05392354]
[1764639720906,5.26055563,127.04,127.03,0.05392354]
[1764639722714,3.17,127.03,127.0,7.0859]
[1764639722910,3.17,127.03,126.98,10.2673]
[1764639723105,3.17,127.01,126.98,10.2673]
[1764639723615,3.2275846,127.01,126.98,7.14382271]
[1764639724205,3.2275846,127.01,126.98,10.32382271]
[1764639724609,3.2275846,127.01,126.98,0.05652271]
[1764639731317,3.14,127.0,126.98,0.05652271]
[1764639733016,3.14,126.99,126.98,0.05652271]
[1764639733318,3.14,126.99,126.93,10.4498]
[1764639734411,3.1993765,126.97,126.95,0.05752703]
[1764639734810,0.0593765,126.97,126.95,3.41752703]
[1764639735210,3.14,127.03,126.98,7.0875]
[1764639735412,3.14,127.03,126.99,3.36]
[1764639735611,67.62,127.08,126.99,3.36]
[1764639735920,3.14,127.07,127.03,3.36]
[1764639736218,0.05438827,127.06,127.04,3.41712853]
[1764639736407,3.19438827,127.06,127.04,0.05712853]
[1764639737514,3.14,127.05,127.04,0.05712853]
[1764639738009,3.19438827,127.06,127.04,0.05712853]
[1764639738413,0.05438827,127.06,127.04,3.41712853]
[1764639738618,0.05438827,127.06,127.04,0.05712853]
[1764639740022,3.19438827,127.06,127.04,0.05712853]
[1764639741717,3.14,127.05,126.99,3.36]
[1764639741925,3.14,127.03,126.98,7.0872]
[1764639742331,10.225,127.03,126.99,3.36]
[1764639742621,3.14,127.02,127.0,0.05162027]
[1764639742925,3.19797765,127.02,127.0,0.05162027]
[1764639747329,0.05797765,127.02,127.0,3.41162027]
[1764639749026,0.05797765,127.02,127.0,10.49772027]
[1764639749222,0.05797765,127.02,127.01,3.36]
[1764639751723,70.84,127.08,127.03,7.0846]
[1764639752030,3.22,127.07,127.04,3.37]
[1764639752230,70.84,127.08,127.04,3.37]
[1764639752432,3.22,127.08,127.05,3.37]
[1764639752831,0.05978842,127.08,127.05,3.42503467]
[1764639753826,3.27978842,127.08,127.05,10.50843467]
[1764639754027,3.27978842,127.08,127.05,7.13843467]
[1764639755035,3.27978842,127.08,127.05,0.05503467]
[1764639757831,3.22,127.13,127.06,3.37]
[1764639758129,3.22,127.13,127.07,3.37]
[1764639758330,3.22,127.13,127.08,7.0818]
[1764639758535,3.22,127.13,127.06,3.15]
[1764639758931,3.26914434,127.11,127.08,3.20170408]
[1764639759136,0.06063631,127.11,127.09,3.15]
[1764639759437,3.21,127.17,127.1,3.15]
[1764639759833,3.21,127.16,127.09,7.0809]
[1764639760330,3.21,127.13,127.11,0.05339044]
[1764639765531,3.21,127.13,127.11,0.00339044]
[1764639772843,10.2893,127.13,127.11,0.00339044]
[1764639773145,3.21,127.12,127.11,0.00339044]
[1764639777940,3.21,127.11,127.04,3.15]
[1764639778143,3.21,127.1,127.01,3.15]
[1764639778643,3.21,127.09,127.04,3.15]
[1764639778842,0.06027069,127.08,127.05,0.05183149]
[1764639779144,3.21,127.07,127.05,0.05183149]
[1764639782743,3.21,127.07,127.01,7.0853]
[1764639783649,3.21,127.04,127.03,0.0559224]
[1764639784549,0.05430376,127.05,127.03,3.2059224]
[1764639784750,3.26430376,127.05,127.03,0.0559224]